[Event "MCR rapid mládeže 2023 U16"]
[Site "Harachov, Czech Republic"]
[Date "2023.09.09"]
[Round "4.2"]
[White "Andrle, Filip"]
[Black "Roubal, Matyas"]
[Result "0-1"]
[TimeControl "20min+5s/move"]
[WhiteElo "1649"]
[BlackElo "1911"]

1. e4 {[%clk 00:20:07]} {[%emt 00:00:02]} c5 {[%clk 00:20:09]} {[%emt
00:00:02]} 2. c4 {[%clk 00:20:05]} {[%emt 00:00:06]} Nc6 {[%clk 00:19:59]}
{[%emt 00:00:15]} 3. Nc3 {[%clk 00:20:00]} {[%emt 00:00:11]} g6 {[%clk
00:19:58]} {[%emt 00:00:06]} 4. g3 {[%clk 00:20:02]} {[%emt 00:00:02]} Bg7
{[%clk 00:20:00]} {[%emt 00:00:03]} 5. Bg2 {[%clk 00:20:04]} {[%emt 00:00:03]}
d6 {[%clk 00:19:39]} {[%emt 00:00:27]} 6. Nge2 {[%clk 00:19:57]} {[%emt
00:00:11]} e6 {[%clk 00:18:48]} {[%emt 00:00:56]} 7. d3 {[%clk 00:19:45]}
{[%emt 00:00:17]} Nge7 {[%clk 00:18:50]} {[%emt 00:00:03]} 8. O-O {[%clk
00:19:44]} {[%emt 00:00:06]} O-O {[%clk 00:18:52]} {[%emt 00:00:03]} 9. Rb1
{[%clk 00:19:20]} {[%emt 00:00:29]} Rb8 {[%clk 00:17:47]} {[%emt 00:01:10]} 10.
a3 {[%clk 00:19:14]} {[%emt 00:00:11]} b6 {[%clk 00:17:01]} {[%emt 00:00:51]}
11. b4 {[%clk 00:17:34]} {[%emt 00:01:44]} Bb7 {[%clk 00:16:14]} {[%emt
00:00:53]} 12. Be3 {[%clk 00:15:05]} {[%emt 00:02:34]} Nd4 {[%clk 00:14:32]}
{[%emt 00:01:47]} 13. Nb5 {[%clk 00:10:29]} {[%emt 00:04:41]} Nxb5 {[%clk
00:13:30]} {[%emt 00:01:07]} 14. cxb5 {[%clk 00:10:28]} {[%emt 00:00:06]} Qd7
{[%clk 00:13:15]} {[%emt 00:00:20]} 15. bxc5 {[%clk 00:09:48]} {[%emt
00:00:45]} dxc5 {[%clk 00:13:18]} {[%emt 00:00:02]} 16. d4 {[%clk 00:08:43]}
{[%emt 00:01:10]} cxd4 {[%clk 00:13:09]} {[%emt 00:00:14]} 17. Nxd4 {[%clk
00:08:23]} {[%emt 00:00:24]} Rfd8 {[%clk 00:12:26]} {[%emt 00:00:48]} 18. Ne2
{[%clk 00:06:33]} {[%emt 00:01:55]} f5 {[%clk 00:07:21]} {[%emt 00:05:10]} 19.
Qxd7 {[%clk 00:05:16]} {[%emt 00:01:22]} Rxd7 {[%clk 00:07:25]} {[%emt
00:00:02]} 20. Rfd1 {[%clk 00:03:13]} {[%emt 00:02:07]} Rbd8 {[%clk 00:07:18]}
{[%emt 00:00:12]} 21. Rxd7 {[%clk 00:02:50]} {[%emt 00:00:28]} Rxd7 {[%clk
00:07:22]} {[%emt 00:00:02]} 22. Nf4 {[%clk 00:00:18]} {[%emt 00:02:37]} e5
{[%clk 00:05:56]} {[%emt 00:01:31]} 23. Ne6 {[%clk 00:00:11]} {[%emt 00:00:11]}
Bxe4 {[%clk 00:05:44]} {[%emt 00:00:17]} 24. Bxe4 {[%clk 00:00:14]} {[%emt
00:00:03]} fxe4 {[%clk 00:05:47]} {[%emt 00:00:02]} 25. Nxg7 {[%clk 00:00:10]}
{[%emt 00:00:08]} Kxg7 {[%clk 00:05:51]} {[%emt 00:00:02]} 26. Rb4 {[%clk
00:00:13]} {[%emt 00:00:02]} Nd5 {[%clk 00:03:51]} {[%emt 00:02:05]} 27. Rxe4
{[%clk 00:00:11]} {[%emt 00:00:07]} Nxe3 {[%clk 00:03:45]} {[%emt 00:00:10]} 28.
Rxe3 {[%clk 00:00:10]} {[%emt 00:00:06]} Rd5 {[%clk 00:03:49]} {[%emt
00:00:01]} 29. a4 {[%clk 00:00:11]} {[%emt 00:00:04]} Kf6 {[%clk 00:03:50]}
{[%emt 00:00:03]} 30. Kf1 {[%clk 00:00:11]} {[%emt 00:00:06]} Rd4 {[%clk
00:03:54]} {[%emt 00:00:02]} 31. Ra3 {[%clk 00:00:13]} {[%emt 00:00:03]} Rb4
{[%clk 00:03:57]} {[%emt 00:00:02]} 32. Ke2 {[%clk 00:00:12]} {[%emt 00:00:06]}
Ke6 {[%clk 00:04:01]} {[%emt 00:00:01]} 33. Ke3 {[%clk 00:00:09]} {[%emt
00:00:07]} Kd5 {[%clk 00:03:58]} {[%emt 00:00:08]} 34. Kd3 {[%clk 00:00:07]}
{[%emt 00:00:08]} Rb2 {[%clk 00:03:55]} {[%emt 00:00:08]} 35. Ke3 {[%clk
00:00:08]} {[%emt 00:00:04]} Kc4 {[%clk 00:03:55]} {[%emt 00:00:05]} 36. Rd3
{[%clk 00:00:11]} {[%emt 00:00:02]} Rb3 {[%clk 00:02:13]} {[%emt 00:01:47]} 37.
Rxb3 {[%clk 00:00:12]} {[%emt 00:00:04]} Kxb3 {[%clk 00:02:17]} 38. Ke4 {[%clk
00:00:16]} Kxa4 {[%clk 00:02:21]} {[%emt 00:00:02]} 39. Kxe5 {[%clk 00:00:12]}
{[%emt 00:00:09]} Kxb5 {[%clk 00:02:25]} 40. f4 {[%clk 00:00:15]} {[%emt
00:00:01]} a5 {[%clk 00:02:20]} {[%emt 00:00:11]} 41. g4 {[%clk 00:00:12]}
{[%emt 00:00:08]} a4 {[%clk 00:02:24]} 42. Kd4 {[%clk 00:00:08]} {[%emt
00:00:10]} Kc6 {[%clk 00:02:12]} {[%emt 00:00:17]} 43. Kc4 {[%clk 00:00:08]}
{[%emt 00:00:05]} b5+ {[%clk 00:02:10]} {[%emt 00:00:07]} 44. Kd4 {[%emt
00:00:09]} 0-1

[Event "MCR rapid mládeže 2023 U16"]
[Site "Harachov, Czech Republic"]
[Date "2023.09.09"]
[Round "4.3"]
[White "Topencik, Bruno"]
[Black "Babula, Matej"]
[Result "0-1"]
[TimeControl "20min+5s/move"]
[WhiteElo "1451"]
[BlackElo "1865"]

1. e4 {[%clk 00:20:08]} {[%emt 00:00:01]} e5 {[%clk 00:20:08]} {[%emt
00:00:03]} 2. Nf3 {[%clk 00:20:10]} {[%emt 00:00:02]} Nc6 {[%clk 00:20:11]}
{[%emt 00:00:02]} 3. Bb5 {[%clk 00:20:13]} {[%emt 00:00:02]} a6 {[%clk
00:20:13]} {[%emt 00:00:04]} 4. Bxc6 {[%clk 00:20:16]} {[%emt 00:00:02]} dxc6
{[%clk 00:20:15]} {[%emt 00:00:03]} 5. O-O {[%clk 00:20:17]} {[%emt 00:00:03]}
f6 {[%clk 00:19:51]} {[%emt 00:00:29]} 6. d4 {[%clk 00:20:20]} {[%emt
00:00:02]} exd4 {[%clk 00:19:44]} {[%emt 00:00:12]} 7. Nxd4 {[%clk 00:20:22]}
{[%emt 00:00:03]} c5 {[%clk 00:19:01]} {[%emt 00:00:47]} 8. Nb3 {[%clk
00:20:21]} {[%emt 00:00:07]} Qxd1 {[%clk 00:18:38]} {[%emt 00:00:28]} 9. Rxd1
{[%clk 00:20:23]} {[%emt 00:00:02]} Bd7 {[%clk 00:16:13]} {[%emt 00:02:30]} 10.
Be3 {[%clk 00:19:57]} {[%emt 00:00:31]} b6 {[%clk 00:15:54]} {[%emt 00:00:25]}
11. Nc3 {[%clk 00:18:49]} {[%emt 00:01:12]} O-O-O {[%clk 00:15:40]} {[%emt
00:00:19]} 12. f3 {[%clk 00:17:49]} {[%emt 00:01:06]} Bd6 {[%clk 00:14:53]}
{[%emt 00:00:52]} 13. Ne2 {[%clk 00:12:18]} {[%emt 00:05:37]} f5 {[%clk
00:12:43]} {[%emt 00:02:14]} 14. Nd2 {[%clk 00:09:36]} {[%emt 00:02:46]} Nf6
{[%clk 00:11:58]} {[%emt 00:00:51]} 15. Bg5 {[%clk 00:08:16]} {[%emt 00:01:24]}
h6 {[%clk 00:09:42]} {[%emt 00:02:22]} 16. Bxf6 {[%clk 00:08:07]} {[%emt
00:00:14]} gxf6 {[%clk 00:09:46]} {[%emt 00:00:01]} 17. Nc3 {[%clk 00:06:29]}
{[%emt 00:01:43]} Be5 {[%clk 00:08:51]} {[%emt 00:01:01]} 18. Nb3 {[%clk
00:04:19]} {[%emt 00:02:14]} Bxc3 {[%clk 00:07:25]} {[%emt 00:01:31]} 19. bxc3
{[%clk 00:04:19]} {[%emt 00:00:05]} fxe4 {[%clk 00:07:28]} {[%emt 00:00:02]} 20.
fxe4 {[%clk 00:04:23]} {[%emt 00:00:02]} Bc6 {[%clk 00:07:23]} {[%emt
00:00:09]} 21. Rxd8+ {[%clk 00:04:13]} {[%emt 00:00:14]} Rxd8 {[%clk 00:07:18]}
{[%emt 00:00:11]} 22. Re1 {[%clk 00:04:15]} {[%emt 00:00:03]} a5 {[%clk
00:05:56]} {[%emt 00:01:27]} 23. Rf1 {[%clk 00:02:50]} {[%emt 00:01:30]} Bxe4
{[%clk 00:05:07]} {[%emt 00:00:54]} 24. Rxf6 {[%clk 00:02:43]} {[%emt
00:00:12]} Bxc2 {[%clk 00:04:09]} {[%emt 00:01:03]} 25. Rf2 {[%clk 00:01:12]}
{[%emt 00:01:36]} Rd1+ {[%clk 00:01:49]} {[%emt 00:02:25]} 26. Rf1 {[%clk
00:01:15]} {[%emt 00:00:02]} Rxf1+ {[%clk 00:01:50]} {[%emt 00:00:04]} 27. Kxf1
{[%clk 00:01:19]} {[%emt 00:00:01]} Bxb3 {[%clk 00:01:54]} {[%emt 00:00:02]} 28.
axb3 {[%clk 00:01:23]} {[%emt 00:00:01]} c4 {[%clk 00:01:57]} {[%emt 00:00:02]}
29. Ke1 {[%clk 00:01:11]} {[%emt 00:00:16]} cxb3 {[%clk 00:01:59]} {[%emt
00:00:03]} 30. Kd1 {[%clk 00:01:15]} a4 {[%clk 00:01:58]} {[%emt 00:00:07]} 31.
g4 {[%clk 00:01:13]} {[%emt 00:00:06]} Kd7 {[%clk 00:01:53]} {[%emt 00:00:10]}
32. h4 {[%clk 00:01:15]} {[%emt 00:00:03]} Ke6 {[%clk 00:01:56]} {[%emt
00:00:03]} 33. c4 {[%clk 00:01:13]} {[%emt 00:00:07]} Ke5 {[%clk 00:01:46]}
{[%emt 00:00:14]} 34. Kd2 {[%clk 00:00:58]} {[%emt 00:00:20]} b2 {[%clk
00:01:47]} {[%emt 00:00:04]} 35. Kc2 {[%clk 00:01:01]} {[%emt 00:00:02]} a3
{[%clk 00:01:51]} {[%emt 00:00:02]} 36. Kb1 {[%clk 00:01:03]} {[%emt 00:00:02]}
Kf4 {[%clk 00:01:55]} {[%emt 00:00:02]} 37. g5 {[%clk 00:01:06]} {[%emt
00:00:02]} hxg5 {[%clk 00:01:56]} {[%emt 00:00:03]} 0-1

[Event "MCR rapid mládeže 2023 U16"]
[Site "Harachov, Czech Republic"]
[Date "2023.09.09"]
[Round "4.4"]
[White "Popov, Roman"]
[Black "Langmaier, Michal"]
[Result "1-0"]
[TimeControl "20min+5s/move"]
[WhiteElo "1751"]
[BlackElo "1769"]

1. d4 {[%clk 00:19:59]} {[%emt 00:00:09]} d5 {[%clk 00:20:06]} {[%emt
00:00:05]} 2. c4 {[%clk 00:19:58]} {[%emt 00:00:06]} e6 {[%clk 00:20:08]}
{[%emt 00:00:02]} 3. Nc3 {[%clk 00:19:59]} {[%emt 00:00:05]} Nf6 {[%clk
00:20:10]} {[%emt 00:00:02]} 4. cxd5 {[%clk 00:19:59]} {[%emt 00:00:05]} exd5
{[%clk 00:20:14]} {[%emt 00:00:02]} 5. Bg5 {[%clk 00:20:01]} {[%emt 00:00:02]}
Nbd7 {[%clk 00:20:17]} {[%emt 00:00:02]} 6. e3 {[%clk 00:20:02]} {[%emt
00:00:04]} Be7 {[%clk 00:20:20]} {[%emt 00:00:02]} 7. Bd3 {[%clk 00:20:04]}
{[%emt 00:00:03]} O-O {[%clk 00:20:07]} {[%emt 00:00:19]} 8. Qc2 {[%clk
00:20:00]} {[%emt 00:00:09]} h6 {[%clk 00:20:09]} {[%emt 00:00:03]} 9. Bh4
{[%clk 00:20:02]} {[%emt 00:00:03]} c6 {[%clk 00:20:11]} {[%emt 00:00:03]} 10.
Nge2 {[%clk 00:20:02]} {[%emt 00:00:04]} Re8 {[%clk 00:19:48]} {[%emt
00:00:27]} 11. O-O {[%clk 00:19:52]} {[%emt 00:00:17]} Nf8 {[%clk 00:19:15]}
{[%emt 00:00:38]} 12. Rae1 {[%clk 00:19:35]} {[%emt 00:00:20]} Ne4 {[%clk
00:17:07]} {[%emt 00:02:14]} 13. Bxe7 {[%clk 00:19:18]} {[%emt 00:00:23]} Qxe7
{[%clk 00:17:11]} {[%emt 00:00:01]} 14. f3 {[%clk 00:19:04]} {[%emt 00:00:18]}
Nxc3 {[%clk 00:15:45]} {[%emt 00:01:31]} 15. Nxc3 {[%clk 00:19:06]} {[%emt
00:00:03]} Ne6 {[%clk 00:14:01]} {[%emt 00:01:50]} 16. Qf2 {[%clk 00:18:50]}
{[%emt 00:00:20]} Qc7 {[%clk 00:12:28]} {[%emt 00:01:39]} 17. e4 {[%clk
00:16:50]} {[%emt 00:02:05]} dxe4 {[%clk 00:10:37]} {[%emt 00:01:56]} 18. fxe4
{[%clk 00:16:42]} {[%emt 00:00:13]} Rd8 {[%clk 00:07:55]} {[%emt 00:02:47]} 19.
Bc4 {[%clk 00:14:28]} {[%emt 00:02:18]} b5 {[%clk 00:06:34]} {[%emt 00:01:26]}
20. Bb3 {[%clk 00:14:06]} {[%emt 00:00:27]} b4 {[%clk 00:06:27]} {[%emt
00:00:12]} 21. Ne2 {[%clk 00:13:42]} {[%emt 00:00:29]} a5 {[%clk 00:05:26]}
{[%emt 00:01:06]} 22. d5 {[%clk 00:12:56]} {[%emt 00:00:51]} cxd5 {[%clk
00:05:19]} {[%emt 00:00:12]} 23. exd5 {[%clk 00:12:48]} {[%emt 00:00:13]} Ng5
{[%clk 00:04:03]} {[%emt 00:01:21]} 24. Nd4 {[%clk 00:10:14]} {[%emt 00:02:39]}
a4 {[%clk 00:02:57]} {[%emt 00:01:11]} 25. d6 {[%clk 00:09:32]} {[%emt
00:00:47]} Qxd6 {[%clk 00:01:46]} {[%emt 00:01:16]} 26. Bxf7+ {[%clk 00:09:17]}
{[%emt 00:00:20]} Kh8 {[%clk 00:00:33]} {[%emt 00:01:18]} 27. Re8+ {[%clk
00:05:23]} {[%emt 00:03:58]} Rxe8 {[%clk 00:00:29]} {[%emt 00:00:10]} 28. Bxe8
{[%clk 00:05:27]} Ba6 {[%clk 00:00:15]} {[%emt 00:00:19]} 29. Qf8+ {[%clk
00:05:21]} {[%emt 00:00:10]} Qxf8 {[%clk 00:00:12]} {[%emt 00:00:09]} 30. Rxf8+
{[%clk 00:05:25]} {[%emt 00:00:01]} Kh7 {[%clk 00:00:14]} {[%emt 00:00:02]} 31.
Bg6+ {[%clk 00:05:27]} {[%emt 00:00:04]} Kxg6 {[%clk 00:00:18]} {[%emt
00:00:01]} 32. Rxa8 {[%clk 00:05:30]} {[%emt 00:00:02]} Bd3 {[%clk 00:00:10]}
{[%emt 00:00:12]} 33. Rxa4 {[%clk 00:05:29]} {[%emt 00:00:07]} b3 {[%clk
00:00:09]} {[%emt 00:00:05]} 34. Nxb3 {[%clk 00:05:12]} {[%emt 00:00:21]} Ne4
{[%clk 00:00:11]} {[%emt 00:00:03]} 35. Rd4 {[%clk 00:04:50]} {[%emt 00:00:27]}
Bc2 {[%clk 00:00:11]} {[%emt 00:00:06]} 36. Na1 {[%clk 00:03:28]} {[%emt
00:01:27]} 1-0

[Event "MCR rapid mládeže 2023 U16"]
[Site "Harachov, Czech Republic"]
[Date "2023.09.09"]
[Round "4.5"]
[White "Hrbek, Jachym"]
[Black "Macosek, Alex"]
[Result "1-0"]
[TimeControl "20min+5s/move"]
[WhiteElo "1769"]
[BlackElo "1508"]

1. e4 {[%clk 00:19:43]} {[%emt 00:00:26]} c6 {[%clk 00:20:09]} 2. c4 {[%clk
00:19:46]} {[%emt 00:00:02]} d5 {[%clk 00:19:56]} {[%emt 00:00:18]} 3. exd5
{[%clk 00:19:49]} {[%emt 00:00:03]} cxd5 {[%clk 00:19:59]} {[%emt 00:00:02]} 4.
cxd5 {[%clk 00:19:52]} {[%emt 00:00:01]} Nf6 {[%clk 00:20:02]} {[%emt
00:00:02]} 5. Nc3 {[%clk 00:19:56]} {[%emt 00:00:01]} Nxd5 {[%clk 00:20:04]}
{[%emt 00:00:03]} 6. Bc4 {[%clk 00:20:00]} {[%emt 00:00:01]} Nxc3 {[%clk
00:19:57]} {[%emt 00:00:12]} 7. bxc3 {[%clk 00:20:03]} {[%emt 00:00:02]} Nc6
{[%clk 00:19:48]} {[%emt 00:00:14]} 8. Nf3 {[%clk 00:20:00]} {[%emt 00:00:09]}
Bg4 {[%clk 00:19:48]} {[%emt 00:00:05]} 9. Bxf7+ {[%clk 00:19:44]} {[%emt
00:00:21]} Kxf7 {[%clk 00:19:31]} {[%emt 00:00:22]} 10. Ng5+ {[%clk 00:19:47]}
{[%emt 00:00:02]} Ke8 {[%clk 00:19:01]} {[%emt 00:00:35]} 11. Qxg4 {[%clk
00:19:48]} {[%emt 00:00:04]} Qd7 {[%clk 00:18:27]} {[%emt 00:00:39]} 12. Qe4
{[%clk 00:18:13]} {[%emt 00:01:39]} Qd6 {[%clk 00:15:33]} {[%emt 00:03:01]} 13.
Rb1 {[%clk 00:16:38]} {[%emt 00:01:41]} Rb8 {[%clk 00:14:28]} {[%emt 00:01:09]}
14. d4 {[%clk 00:16:25]} {[%emt 00:00:18]} Qg6 {[%clk 00:12:49]} {[%emt
00:01:43]} 15. Qxg6+ {[%clk 00:16:09]} {[%emt 00:00:21]} hxg6 {[%clk 00:12:53]}
{[%emt 00:00:02]} 16. Bf4 {[%clk 00:16:07]} {[%emt 00:00:08]} e5 {[%clk
00:11:31]} {[%emt 00:01:27]} 17. dxe5 {[%clk 00:15:59]} {[%emt 00:00:12]} Na5
{[%clk 00:11:11]} {[%emt 00:00:24]} 18. O-O {[%clk 00:14:54]} {[%emt 00:01:11]}
Rc8 {[%clk 00:10:50]} {[%emt 00:00:25]} 19. Rfe1 {[%clk 00:14:20]} {[%emt
00:00:40]} Bc5 {[%clk 00:10:04]} {[%emt 00:00:51]} 20. e6 {[%clk 00:12:56]}
{[%emt 00:01:30]} 1-0

[Event "MCR rapid mládeže 2023 U16"]
[Site "Harachov, Czech Republic"]
[Date "2023.09.09"]
[Round "4.6"]
[White "Bludsky, Hynek"]
[Black "Jasso, Matej"]
[Result "0-1"]
[TimeControl "20min+5s/move"]
[WhiteElo "1547"]
[BlackElo "1794"]

1. e4 {[%clk 00:20:07]} {[%emt 00:00:03]} c5 {[%clk 00:20:01]} {[%emt
00:00:09]} 2. Nf3 {[%clk 00:20:10]} {[%emt 00:00:01]} d6 {[%clk 00:20:04]}
{[%emt 00:00:02]} 3. d4 {[%clk 00:20:13]} {[%emt 00:00:03]} cxd4 {[%clk
00:20:06]} {[%emt 00:00:03]} 4. Nxd4 {[%clk 00:20:16]} {[%emt 00:00:02]} Nf6
{[%clk 00:20:09]} {[%emt 00:00:01]} 5. Nc3 {[%clk 00:20:15]} {[%emt 00:00:06]}
a6 {[%clk 00:20:13]} {[%emt 00:00:02]} 6. Be2 {[%clk 00:20:15]} {[%emt
00:00:05]} e5 {[%clk 00:20:14]} {[%emt 00:00:04]} 7. Nb3 {[%clk 00:20:11]}
{[%emt 00:00:09]} Be7 {[%clk 00:20:14]} {[%emt 00:00:05]} 8. O-O {[%clk
00:20:12]} {[%emt 00:00:05]} O-O {[%clk 00:20:08]} {[%emt 00:00:11]} 9. Be3
{[%clk 00:20:15]} {[%emt 00:00:02]} b5 {[%clk 00:19:47]} {[%emt 00:00:26]} 10.
a3 {[%clk 00:18:56]} {[%emt 00:01:23]} Bb7 {[%clk 00:19:43]} {[%emt 00:00:09]}
11. f3 {[%clk 00:18:53]} {[%emt 00:00:09]} Nbd7 {[%clk 00:18:26]} {[%emt
00:01:22]} 12. a4 {[%clk 00:18:33]} {[%emt 00:00:25]} b4 {[%clk 00:18:11]}
{[%emt 00:00:20]} 13. Na2 {[%clk 00:18:24]} {[%emt 00:00:14]} d5 {[%clk
00:18:14]} {[%emt 00:00:02]} 14. exd5 {[%clk 00:18:20]} {[%emt 00:00:09]} Nxd5
{[%clk 00:17:55]} {[%emt 00:00:24]} 15. Bf2 {[%clk 00:18:15]} {[%emt 00:00:10]}
Rc8 {[%clk 00:17:37]} {[%emt 00:00:23]} 16. Qd2 {[%clk 00:17:44]} {[%emt
00:00:33]} Qc7 {[%clk 00:16:55]} {[%emt 00:00:49]} 17. Rac1 {[%clk 00:17:26]}
{[%emt 00:00:23]} h6 {[%clk 00:16:37]} {[%emt 00:00:23]} 18. Qd1 {[%clk
00:16:35]} {[%emt 00:00:56]} Bg5 {[%clk 00:14:56]} {[%emt 00:01:46]} 19. Nd2
{[%clk 00:16:06]} {[%emt 00:00:34]} N7b6 {[%clk 00:14:42]} {[%emt 00:00:19]} 20.
h4 {[%clk 00:14:41]} {[%emt 00:01:30]} Ne3 {[%clk 00:13:28]} {[%emt 00:01:19]}
21. Bxe3 {[%clk 00:14:29]} {[%emt 00:00:16]} Bxe3+ {[%clk 00:13:29]} {[%emt
00:00:03]} 22. Kh1 {[%clk 00:14:33]} {[%emt 00:00:01]} Nxa4 {[%clk 00:12:59]}
{[%emt 00:00:35]} 23. Nxb4 {[%clk 00:13:40]} {[%emt 00:00:58]} Qe7 {[%clk
00:11:53]} {[%emt 00:01:11]} 24. Qe1 {[%clk 00:13:29]} {[%emt 00:00:16]} Qxb4
{[%clk 00:11:55]} {[%emt 00:00:03]} 25. c3 {[%clk 00:13:01]} {[%emt 00:00:33]}
Bxd2 {[%clk 00:10:29]} {[%emt 00:01:31]} 26. cxb4 {[%clk 00:12:33]} {[%emt
00:00:33]} Bxe1 {[%clk 00:10:28]} {[%emt 00:00:05]} 27. Rfxe1 {[%clk 00:12:37]}
{[%emt 00:00:02]} Nxb2 {[%clk 00:10:00]} {[%emt 00:00:33]} 28. Rb1 {[%clk
00:12:21]} {[%emt 00:00:21]} Na4 {[%clk 00:05:59]} {[%emt 00:04:06]} 29. Ra1
{[%clk 00:11:43]} {[%emt 00:00:43]} Nc3 {[%clk 00:05:42]} {[%emt 00:00:22]} 30.
Bxa6 {[%clk 00:11:18]} {[%emt 00:00:29]} Bxa6 {[%clk 00:05:46]} {[%emt
00:00:02]} 31. Rxa6 {[%clk 00:11:20]} {[%emt 00:00:03]} f6 {[%clk 00:05:41]}
{[%emt 00:00:09]} 32. Ra7 {[%clk 00:10:15]} {[%emt 00:01:10]} Rf7 {[%clk
00:05:18]} {[%emt 00:00:28]} 33. Ra3 {[%clk 00:09:44]} {[%emt 00:00:37]} Nb5
{[%clk 00:05:03]} {[%emt 00:00:20]} 34. Ra5 {[%clk 00:09:17]} {[%emt 00:00:31]}
Rb7 {[%clk 00:04:59]} {[%emt 00:00:08]} 35. Rb1 {[%clk 00:09:15]} {[%emt
00:00:07]} Rcb8 {[%clk 00:04:49]} {[%emt 00:00:15]} 36. Kg1 {[%clk 00:08:47]}
{[%emt 00:00:34]} Nc3 {[%clk 00:04:20]} {[%emt 00:00:34]} 37. Rb3 {[%clk
00:08:15]} {[%emt 00:00:37]} Ne2+ {[%clk 00:04:24]} {[%emt 00:00:01]} 38. Kf2
{[%clk 00:08:15]} {[%emt 00:00:05]} Nd4 {[%clk 00:04:28]} {[%emt 00:00:01]} 39.
Rc3 {[%clk 00:08:12]} {[%emt 00:00:09]} Rxb4 {[%clk 00:04:30]} {[%emt
00:00:03]} 40. Rc7 {[%clk 00:08:07]} {[%emt 00:00:10]} R4b7 {[%clk 00:04:18]}
{[%emt 00:00:17]} 41. Rc4 {[%clk 00:08:06]} {[%emt 00:00:05]} Rb2+ {[%clk
00:04:22]} {[%emt 00:00:02]} 42. Kg3 {[%clk 00:08:00]} {[%emt 00:00:11]} Rc2
{[%clk 00:04:20]} {[%emt 00:00:07]} 43. Rxc2 {[%clk 00:07:52]} {[%emt
00:00:13]} Nxc2 {[%clk 00:04:24]} {[%emt 00:00:01]} 44. Ra7 {[%clk 00:07:51]}
{[%emt 00:00:05]} h5 {[%clk 00:04:14]} {[%emt 00:00:14]} 45. Kh2 {[%clk
00:07:37]} {[%emt 00:00:19]} Nd4 {[%clk 00:04:14]} {[%emt 00:00:05]} 46. Rd7
{[%clk 00:07:32]} {[%emt 00:00:11]} Rb4 {[%clk 00:04:05]} {[%emt 00:00:14]} 47.
Kg3 {[%clk 00:07:26]} {[%emt 00:00:11]} Kh7 {[%clk 00:04:03]} {[%emt 00:00:07]}
48. Rc7 {[%clk 00:07:14]} {[%emt 00:00:17]} Kg6 {[%clk 00:03:59]} {[%emt
00:00:09]} 49. Kh3 {[%clk 00:07:04]} {[%emt 00:00:15]} Nf5 {[%clk 00:03:55]}
{[%emt 00:00:09]} 50. g3 {[%clk 00:06:54]} {[%emt 00:00:15]} Rb3 {[%clk
00:03:55]} {[%emt 00:00:05]} 51. Kg2 {[%clk 00:06:53]} {[%emt 00:00:05]} Nd4
{[%clk 00:03:44]} {[%emt 00:00:16]} 52. f4 {[%clk 00:06:43]} {[%emt 00:00:15]}
exf4 {[%clk 00:03:44]} {[%emt 00:00:06]} 53. gxf4 {[%clk 00:06:47]} {[%emt
00:00:02]} Ne6 {[%clk 00:03:45]} {[%emt 00:00:03]} 54. Re7 {[%clk 00:06:24]}
{[%emt 00:00:27]} Nxf4+ {[%clk 00:03:47]} {[%emt 00:00:03]} 55. Kf2 {[%clk
00:06:25]} {[%emt 00:00:04]} Nd3+ {[%clk 00:03:41]} {[%emt 00:00:12]} 56. Ke2
{[%clk 00:06:22]} {[%emt 00:00:08]} Ne5 {[%clk 00:03:42]} {[%emt 00:00:03]} 57.
Rc7 {[%clk 00:06:23]} {[%emt 00:00:05]} Rh3 {[%clk 00:03:42]} {[%emt 00:00:04]}
0-1